Cogmind - Beta 14 @@@ ROGUE MODE // 2025.04.29 @ 09:23:38 Player: Domo Result: Destroyed by L-31 Rogue with Katana Performance ------------- Evolutions (1) 500 Regions Visited (3) 600 Robots Destroyed (26) 130 Value Destroyed (649) 649 Prototype IDs (0) 0 Alien Tech Used (0) 0 Bonus (20) 20 TOTAL SCORE: 1899 Bonus ------- High Alert Combat Kills 20 Cogmind --------- Core Integrity 0/400 Matter 226/300 Energy 84/100 System Corruption 1% Temperature Cool (0) Movement Walking (190) Ox1 Location -9/Mines Parts ------- > --- POWER (1) -------- (None) > --- PROPULSION (2) --- Aluminum Leg > --- UTILITY (3) ------ Small Storage Unit > --- WEAPON (3) ------- Autogun Rocket Launcher Flail > --- INVENTORY (8) ---- Aluminum Leg Aluminum Leg Flail Peak State ------------ > --- POWER ------------ Light Deuterium Engine > --- PROPULSION ------- Aluminum Leg Aluminum Leg > --- UTILITY ---------- Small Storage Unit > --- WEAPON ----------- Autogun Flail Flail > --- INVENTORY -------- Reinforced Ion Engine Aluminum Leg Aluminum Leg [Rating: 12] Favorites ----------- Power Ion Engine Engine Ion Engine Propulsion Aluminum Leg Leg Aluminum Leg Utility Small Storage Unit Storage Small Storage Unit Processor Visual Processing Unit Protection Light Armor Plating Weapon Flail Ballistic Gun Autogun Launcher Grenade Launcher Impact Weapon Flail Build | -11 -10 -9 -9 ------- Run | Yrd Mat Mat Min Slots Evolved 2 | . . 2 . Power . | . . . . Propulsion . | . . . . Utility 1 | . . 1 . Weapon 1 | . . 1 . Parts Attached 22 | 6 2 13 1 Power 4 | 1 . 3 . Engine 4 | 1 . 3 . Core . | . . . . Reactor . | . . . . Propulsion 6 | 2 . 4 . Treads . | . . . . Leg 6 | 2 . 4 . Wheel . | . . . . Hover . | . . . . Flight . | . . . . Utility 3 | 1 . 2 . Device . | . . . . Storage 1 | 1 . . . Processor 1 | . . 1 . Hackware . | . . . . Protection 1 | . . 1 . Artifact . | . . . . Weapon 9 | 2 2 4 1 Energy Gun . | . . . . Energy Cannon . | . . . . Ballistic Gun 4 | 2 1 1 . Ballistic Cannon . | . . . . Launcher 3 | . 1 1 1 Special Weapon . | . . . . Impact Weapon 2 | . . 2 . Slashing Weapon . | . . . . Piercing Weapon . | . . . . Special Melee Weapon . | . . . . Unidentified Prototypes . | . . . . Parts Lost 5 | . . 3 2 Power . | . . . . Propulsion 1 | . . . 1 Utility 1 | . . 1 . Weapon 3 | . . 2 1 Highest Loss Streak 2 | . . 1 2 To Critical Strikes . | . . . . Average Slot Usage (%) 79 | . 83 77 74 Engine 12 | . 14 11 10 Leg 24 | . 28 22 20 Storage 12 | . 14 11 11 Ballistic Gun 12 | . 14 11 11 Launcher 9 | . 12 8 11 Impact Weapon 8 | . . 13 11 Peak Build Rating 12 | 6 8 12 11 Average Rating 8 | 4 6 10 10 On Entrance 6 | . 6 8 11 Naked Turns . | . . . . Heaviest Build 24 | 14 16 24 24 Greatest Support 20 | 20 20 20 20 Greatest Overweight (x) 4 | 4 . 1 1 Average Overweight (x) . | . . . 1 Largest Inventory Capacity 8 | 8 8 8 8 Average Capacity 7 | 7 8 8 8 Most Carried 8 | 2 8 7 4 Average Carried 4 | 1 5 4 3 Final Capacity 8 | 8 8 8 8 Final Carried 7 | 2 7 4 3 Class Distribution -------------------- 100% | Mutant Dominant Class ---------------- Mutant | -10/Materials Mutant | -9/Materials Mutant | -9/Mines Resources | -11 -10 -9 -9 ----------- Run | Yrd Mat Mat Min Matter Collected 556 | 260 72 224 . Remotely . | . . . . Salvage Created 794 | . 166 628 . Parts 50 | . 12 38 . Haulers Intercepted 1 | . . 1 . Recyclers Shooed . | . . . . Parts Field Recycled . | . . . . Retrieved Matter . | . . . . Parts Self-Destructed . | . . . . Prevented . | . . . . Kills | -11 -10 -9 -9 ------- Run | Yrd Mat Mat Min Combat Hostiles Destroyed 23 | . 4 19 . Melee 4 | . . 4 . Guns 9 | . 3 6 . AOE 6 | . 1 5 . Classes Destroyed 6 | . 1 5 . Builder 2 | . . 2 . Hauler 1 | . . 1 . Swarmer 8 | . . 8 . Grunt 12 | . 4 8 . Brawler 1 | . . 1 . Sentry 2 | . . 2 . Best Kill Streak 8 | . 2 8 . Combat Bots Only 7 | . 2 7 . Max Kills in Single Turn 4 | . 1 4 . Gunslinging . | . . . . Exploded 3 | . 1 3 . Melee 1 | . . 1 . Uniques/NPCs Destroyed . | . . . . Combat | -11 -10 -9 -9 -------- Run | Yrd Mat Mat Min Hostile Shots Fired 169 | . 11 134 24 Missed 43 | . 3 37 3 Damage Taken 1688 | . 108 1164 416 Core 426 | . 10 251 165 Absorbed by Shields . | . . . . Core Remaining (%) 98 | 100 96 . . Volleys Fired 43 | . 19 19 5 Largest 2 | . 2 1 1 Hottest 50 | . 50 30 33 Shots Fired 44 | . 20 19 5 Gun 35 | . 19 16 . Cannon . | . . . . Launcher 9 | . 1 3 5 Special . | . . . . Kinetic 35 | . 19 16 . Thermal . | . . . . Explosive 9 | . 1 3 5 Electromagnetic . | . . . . Robot Hit Streak 13 | . 7 13 . Robot Miss Streak 8 | . 8 2 . Penetration Max . | . . . . Secondary Targets . | . . . . Shots Hit Robots 55 | . 10 43 2 Core Hits 29 | . 7 17 5 Critical Kills . | . . . . Critical Parts Destroyed 7 | . . 7 . Critical Strikes 7 | . . 7 . Smash 7 | . . 7 . Melee Attacks 46 | . . 43 3 Impact 46 | . . 43 3 Slashing . | . . . . Piercing . | . . . . Sneak Attacks 2 | . . 2 . Combat Hostiles . | . . . . Follow-up Attacks . | . . . . Damage Inflicted 1706 | . 136 1427 143 Guns 330 | . 120 210 . Cannons . | . . . . Explosions 363 | . 16 243 104 Melee 1012 | . . 973 39 Ramming 1 | . . 1 . Kinetic 330 | . 120 210 . Thermal . | . . . . Explosive 363 | . 16 243 104 Electromagnetic . | . . . . Impact 1012 | . . 973 39 Slashing . | . . . . Piercing . | . . . . Highest Corruption 1 | . . 1 1 Average Corruption 1 | . . 1 1 Corruption Purged . | . . . . Corruption Blocked . | . . . . Effects 3 | . . 1 2 Message Errors 1 | . . 1 . Matter Fused 1 | . . . 1 Energy Discharges 1 | . . . 1 Overload Shots . | . . . . Overflow Damage 296 | . . 296 . Projectiles . | . . . . Explosions 18 | . . 18 . Melee 278 | . . 278 . Knockbacks 5 | . . 4 1 Impact 4 | . . 3 1 Kinetic . | . . . . Secondary 1 | . . 1 . Self-Inflicted Damage 36 | . 22 14 . Shots 2 | . 1 1 . Rammed . | . . . . Targets Rammed 1 | . . 1 . Kicked 1 | . . 1 . Crushed . | . . . . Highest Temperature 21 | . 3 9 21 Average Temperature 5 | . 2 4 10 Received Heat Transfer 501 | . 48 375 78 Siege Activations . | . . . . Robots Corrupted 4 | . . 4 . Combat Hostiles 4 | . . 4 . Parts Fried 6 | . . 6 . Impact Corruptions 11 | . . 11 . Robots Melted . | . . . . Combat Hostiles . | . . . . Parts Melted . | . . . . Heat Transferred . | . . . . Parts Sabotaged . | . . . . Parts Stolen . | . . . . Parts Stripped . | . . . . Power Chain Reactions . | . . . . Alert | -11 -10 -9 -9 ------- Run | Yrd Mat Mat Min Peak Influence 477 | . 123 477 141 Initial 134 | . . 12 134 Average 167 | . 40 275 133 Maximum Alert Level 2 | . . 2 . Low Security (%) 59 | 100 100 21 100 Level 1 33 | . . 64 . Level 2 7 | . . 13 . Level 3 . | . . . . Level 4 . | . . . . Level 5 . | . . . . High Security . | . . . . Max Security . | . . . . Squads Dispatched 3 | . 1 2 . Investigation 1 | . . 1 . Extermination . | . . . . Reinforcement 2 | . 1 1 . Assault . | . . . . Garrison . | . . . . Intercept . | . . . . Searches Triggered . | . . . . Construction Impeded 1 | . . 1 . Haulers Reinforced . | . . . . Active Scanning Responses . | . . . . Cargo Convoy Interrupts . | . . . . Stealth | -11 -10 -9 -9 --------- Run | Yrd Mat Mat Min Distress Signals 3 | . 1 2 . Communications Jammed . | . . . . Distress Signals . | . . . . Times Spotted 40 | . 10 25 5 Peak Tracking Total 10 | . 4 10 5 Tactical Retreats 3 | . 2 1 . Traps | -11 -10 -9 -9 ------- Run | Yrd Mat Mat Min Traps Triggered . | . . . . Indirectly . | . . . . Trap Hack Attempts . | . . . . Triggered . | . . . . Disarmed . | . . . . Reprogrammed . | . . . . Reused . | . . . . Traps Extracted . | . . . . Installed . | . . . . Triggered . | . . . . Machines | -11 -10 -9 -9 ---------- Run | Yrd Mat Mat Min Machines Disabled 1 | . 1 . . Max in Single Turn 1 | . 1 . . Machines Repaired . | . . . . Machines Dismantled . | . . . . Machines Sabotaged . | . . . . Overloaded Fab Kills . | . . . . Hacking | -11 -10 -9 -9 --------- Run | Yrd Mat Mat Min Machines Accessed 3 | . . 3 . Terminals 3 | . . 3 . Fabricators . | . . . . Repair Stations . | . . . . Recycling Units . | . . . . Scanalyzers . | . . . . Garrison Access . | . . . . Total Hacks 8 | . . 8 . Successful 5 | . . 5 . Failed 3 | . . 3 . Catastrophic 1 | . . 1 . Database Lockouts . | . . . . Manual 4 | . . 4 . Terminals 8 | . . 8 . Fabricators . | . . . . Repair Stations . | . . . . Recycling Units . | . . . . Scanalyzers . | . . . . Garrison Access . | . . . . Terminal Hacks 5 | . . 5 . Record 2 | . . 2 . Robot Analysis 1 | . . 1 . Fabricator Index 1 | . . 1 . Hauler Manifests 1 | . . 1 . Fabricator Hacks . | . . . . Repair Station Hacks . | . . . . Recycling Unit Hacks . | . . . . Scanalyzer . | . . . . Garrison Access Hacks . | . . . . Unauthorized Hacks . | . . . . Terminals . | . . . . Fabricators . | . . . . Repair Stations . | . . . . Recycling Units . | . . . . Scanalyzers . | . . . . Garrison Access . | . . . . Data Cores Recovered . | . . . . Used . | . . . . Hacking Detections 3 | . . 3 . Full Trace Events 2 | . . 2 . Feedback Events 1 | . . 1 . Corruption 1 | . . 1 . Feedback Blocked . | . . . . Robot Schematics Acquired . | . . . . Robots Built . | . . . . Authchips . | . . . . Time . | . . . . Total Robot Build Rating . | . . . . Part Schematics Acquired . | . . . . Parts Built . | . . . . Authchips . | . . . . Time . | . . . . Total Part Build Rating . | . . . . Parts Repaired . | . . . . Time . | . . . . Parts Recycled . | . . . . Recycled Matter . | . . . . Retrieved Matter . | . . . . Retrieved Components . | . . . . Parts Scanalyzed . | . . . . Part Schematics Acquired . | . . . . Parts Damaged . | . . . . Bothacking | -11 -10 -9 -9 ------------ Run | Yrd Mat Mat Min Used RIF Installer . | . . . . Robots Hacked . | . . . . Non-combat . | . . . . Combat . | . . . . Robot Hacks Applied . | . . . . Relay Couplers Released . | . . . . Fabnet Peak Effective % . | . . . . Robots Rewired . | . . . . Allies Hacked . | . . . . Hacks Repelled . | . . . . Allies | -11 -10 -9 -9 -------- Run | Yrd Mat Mat Min Total Allies . | . . . . Largest Group . | . . . . Highest-Rated Group . | . . . . Highest-Rated Ally . | . . . . Total Orders . | . . . . Ally Attacks . | . . . . Total Damage . | . . . . Kills . | . . . . Allies Corrupted . | . . . . Allies Melted . | . . . . Intel | -11 -10 -9 -9 ------- Run | Yrd Mat Mat Min Robot Analysis Total 1 | . . 1 . Derelict Logs Recovered 1 | . . . 1 Drone Launches . | . . . . Drone Recoveries . | . . . . Exploration | -11 -10 -9 -9 ------------- Run | Yrd Mat Mat Min Turns Passed 1490 | 68 531 771 120 Spaces Moved 755 | 41 274 387 53 Core 15 | 15 . . . Treads . | . . . . Legs 740 | 26 274 387 53 Wheels . | . . . . Hover . | . . . . Flight . | . . . . Fastest Speed 50 | 50 120 120 190 Average Speed 137 | 141 120 141 190 Slowest Speed 250 | 250 120 190 190 Overloaded Moves . | . . . . Propulsion Burnouts . | . . . . Robots Hopped . | . . . . Cave-ins Triggered . | . . . . Exploration Rate (%) 27 | 4 50 29 25 Regions Visited 3 Branch Regions 1 Pre-discovered Areas . | . . . . Known Exits Taken . | . . . . Unknown Exits Taken 3 | 1 1 1 . Scrap Searched . | . . . . Spaces Dug . | . . . . Terrain Destroyed 67 | . 3 25 39 Melee . | . . . . Projectile . | . . . . AOE 67 | . 3 25 39 Terrain Rammed . | . . . . Walls Destroyed . | . . . . Machines Disabled . | . . . . Actions | -11 -10 -9 -9 --------- Run | Yrd Mat Mat Min Total 1100 | 48 460 529 63 Wait 198 | . 146 51 1 Move 752 | 40 273 386 53 Hop . | . . . . Pick Up 20 | 2 12 6 . Fast Attach 9 | 6 . 3 . Attach 4 | . 1 2 1 Detach 2 | . 1 1 . Swap 9 | . 1 8 . Drop 16 | . 7 9 . Fire 43 | . 19 19 5 Melee 46 | . . 43 3 Ram . | . . . . Kick 1 | . . 1 . Crush . | . . . . Escape Stasis . | . . . . Rewire . | . . . . Trap . | . . . . Miscellaneous . | . . . . Route ------- -11/Scrapyard -10/Materials (discovered 2 exits: *Mat / [*Min]) -9/Materials -9/Mines History --------- Turn | Location | Event 26 | -11/Scrapyard | Discovered new exit (range 16) 69 | -11/Scrapyard | Entered Materials 306 | -10/Materials | Build established: Mutant 473 | -10/Materials | Discovered new exit (range 16) 571 | -10/Materials | Discovered new exit (range 16) 600 | -10/Materials | Entered another Materials area 600 | -9/Materials | Evolved 2 slots: Utility x1, Weapon x1 832 | -9/Materials | Destroyed 7 combat bots 914 | -9/Materials | Core integrity fell below 50% 1180 | -9/Materials | Discovered new exit (range 16) 1371 | -9/Materials | Entered Mines 1446 | -9/Mines | Learned 4 Materials zone layouts 1488 | -9/Mines | Core integrity fell below 20% 1491 | -9/Mines | Destroyed by L-31 Rogue with Katana Last Messages --------------- ALERT: Suspicious activity at Terminal M007. Dispatching Investigation squad. K5OLO9ONLFRG4F%UGFG%YR>0Y9GSBHU%JG, LOCATION=UNKNOWN GOAL=ESCAPE System corrupted: Matter fused (-9). Acquired derelict log, extracted data. Data stored: Materials zone layouts (x4). L-31 Rogue knocked back. Aluminum Leg destroyed. Rocket Launcher destroyed. U-05 Engineer builds a Wall. Rnf. Ion Engine severed. System corrupted: Energy discharge (-29). U-05 Engineer builds a Wall. The unstable cave ceiling collapses. B-36 Bruiser crushed by falling debris. B-36 Bruiser destroyed. 14 Matter crushed. The unstable cave ceiling collapses. Map ----- +----------------------------------------------------+ | ????????????????????????????????????????????????? | | ????????????????????????????????????????????????? | | ????????????????????????????????????????????????? | | ????????????????????????????????????????????????? | | ????????????????????????????????????????????????? | | ????????????????????????????????????????????????? | | ????????????????????????????????????????????????? | | ????????????????????????????????????????????????? | | ????????????????????????????????????????????????? | | ????????????????????????????????????????????????? | | ?????????????????????? ????????????????????????? | | ???????????????????### ????????????????????????? | | ???????????????? ????????????? ##????????? | | ??????????????? ###?????????? ???????? | | ???????????????? ?????????? ???????? | | ???????????????? ?????????? ##??????? | | ????????????????? g ##?????????? ???????? | | ?????????????????? # #?????????? ???????? | | ??????????????????# g ?????????? ???????? | | ???????????????#### # ##?????????# #???????? | | ??????????????## ##????????# ##?????#? | | ??????????????# #????????# #### ## | | ??????????????? """ #????????# # | | ?????????????? """ g #?????????# """ | | ?????????????? """ l #?????????## """ | | ?????????????# #*@############ """ | | ?????????????#### ??# | | ????????????????##????# | | ??????????????????????##### ######### ### | | ??????????????????????????# #???????## ###?????? | | ??????????????????????????# #????????# ######??? | | ??????????????????????????# #????????# #??? | | ??????????????????????????# #????????# #### | | ??????????????????????????# #????????# #??# #??? | | ??????????????????????????# #????????# ##?# #??? | | ??????????????????????????? ?????????# ### #### | | ??????????????????????????? ?????????# ## ## | | ??????????????????????????? ?????????# | | ??????????????????????????? ?????????## | | ???????????????????????????#??????????## ## | | ???????????????????????????????????????# #### | | ??????????????????????????????????????# ##??# | | ???????????????????????????????????? ##???## | | ??????????????????????????????????# #?????# | | ????????????????????????????????? #?????? | | ????????????????????????????????### ##?????? | | ??????????????????????????????????## ####??????? | | ???????????????????????????????????###??????????? | | ????????????????????????????????????????????????? | | ????????????????????????????????????????????????? | +----------------------------------------------------+ Best States ------------- Heat Dissipation 28 Energy Generation 14 Energy Capacity 265 Matter Stores 300 Matter Capacity 300 Sight Range 16 Terrain Scan Density 10 Armor Coverage 150 Evasion (%) 55 Item Schematics ----------------- None Robot Schematics ------------------ None Fabricated ------------ Nothing Alien Tech Used ----------------- None Achievements -------------- None Challenges ------------ None Game ------ Seed TiamatContainmentShielding Manual? 0 Play Time 00:42:03 Cumulative 13.4 hours Start 2025.04.27 @ 20:57:54 End 2025.04.29 @ 09:23:38 Sessions 3 Manual Loads 0 Difficulty Rogue Special Mode None Game No. 16 Rogue 5 Adventurer 11 Explorer 0 Win Type - Total 0 Types 0/0/0/0/0/0/0/0/0 Lore% 4 Gallery% 11 Achievement% 14 Wizard Run 0 Options --------- Layout 1 ASCII 0 Keyboard 1 Movement Vi Keybinds 0 Fullscreen 2 Font 24/Smallcaps Map View 50x35 Zoom Use 0% Tactical HUD 0 Map Filters NONE Filters NONE Steam 1 RUN: 712d6130-6cfc-4ca7-b170-38db8f89d01e